Cogmind - Beta 12 @@@ ROGUE MODE // 2023.09.15 @ 00:34:18 Player: ampersand Result: Self-destructed Performance ------------- Evolutions (1) 500 Regions Visited (3) 600 Robots Destroyed (18) 90 Value Destroyed (516) 516 Prototype IDs (5) 100 Alien Tech Used (0) 0 Bonus (0) 0 TOTAL SCORE: 1806 Bonus ------- None Cogmind --------- Core Integrity 129/400 Matter 300/300 Energy 20/250 System Corruption 2% Temperature Danger (447) Movement Core (300) Ox5 Location -9/Storage Parts ------- > --- POWER (2) -------- Ion Engine > --- PROPULSION (3) --- Aerolev Unit Aerolev Unit > --- UTILITY (2) ------ Medium Storage Unit > --- WEAPON (2) ------- Improved EM Shotgun > --- INVENTORY (10) --- Advanced Treads Advanced Treads Advanced Treads Advanced Treads Small Storage Unit Visual Processing Unit Grenade Launcher Plasma Cutter Peak State ------------ > --- POWER ------------ Ion Engine Ion Engine > --- PROPULSION ------- Aerolev Unit Aerolev Unit Aerolev Unit > --- UTILITY ---------- Medium Storage Unit Advanced Targeting Computer > --- WEAPON ----------- Improved EM Shotgun Improved EM Shotgun > --- INVENTORY -------- Ion Engine Advanced Treads Advanced Treads Advanced Treads Advanced Treads Small Storage Unit Visual Processing Unit Improved EM Shotgun Grenade Launcher Plasma Cutter [Rating: 26] Favorites ----------- Power Ion Engine Engine Ion Engine Propulsion Light Treads Treads Light Treads Leg Aluminum Leg Wheel Wheel Hover Unit Aerolev Unit Utility Small Battery Storage Small Battery Processor Advanced Targeting Computer Protection Medium Armor Plating Weapon Light Assault Rifle Energy Gun Improved EM Shotgun Ballistic Gun Light Assault Rifle Build | -11 -10 -9 -9 ------- Run | Jun Mat Mat Sto Slots Evolved 2 | . . 2 . Power 1 | . . 1 . Propulsion 1 | . . 1 . Utility . | . . . . Weapon . | . . . . Parts Attached 27 | 8 1 15 3 Power 5 | 1 . 3 1 Engine 5 | 1 . 3 1 Core . | . . . . Reactor . | . . . . Propulsion 10 | 4 . 6 . Treads 2 | 2 . . . Leg 3 | . . 3 . Wheel 2 | 2 . . . Hover 3 | . . 3 . Flight . | . . . . Utility 5 | 1 1 2 1 Device . | . . . . Storage 3 | 1 1 1 . Processor 1 | . . 1 . Hackware . | . . . . Protection 1 | . . . 1 Artifact . | . . . . Weapon 7 | 2 . 4 1 Energy Gun 4 | . . 3 1 Energy Cannon . | . . . . Ballistic Gun 3 | 2 . 1 . Ballistic Cannon . | . . . . Launcher . | . . . . Special Weapon . | . . . . Impact Weapon . | . . . . Slashing Weapon . | . . . . Piercing Weapon . | . . . . Special Melee Weapon . | . . . . Unidentified Prototypes 2 | . . 2 . Parts Lost 7 | . . 2 5 Power 3 | . . 1 2 Propulsion 2 | . . 1 1 Utility 1 | . . . 1 Weapon 1 | . . . 1 Highest Loss Streak 5 | . . 1 5 To Critical Strikes . | . . . . Average Slot Usage (%) 89 | . 98 85 96 Engine 16 | . 14 16 20 Treads 15 | . 28 15 . Leg 1 | . . 2 . Hover 8 | . . 7 31 Storage 20 | . 26 19 11 Processor 1 | . . 2 2 Energy Gun 4 | . . 2 22 Ballistic Gun 19 | . 28 19 . Naked Turns . | . . . . Heaviest Build 33 | 13 14 26 33 Greatest Support 40 | 40 40 40 24 Greatest Overweight (x) 2 | 1 . 2 1 Average Overweight (x) . | . . . 1 Largest Inventory Capacity 10 | 8 8 10 10 Average Capacity 9 | 7 8 9 10 Most Carried 10 | 7 8 10 10 Average Carried 8 | 3 7 9 9 Final Capacity 10 | 8 8 10 10 Final Carried 10 | 6 8 10 8 Class Distribution -------------------- 100% | Mutant Dominant Class ---------------- Mutant | -10/Materials Mutant | -9/Materials Mutant | -9/Storage Resources | -11 -10 -9 -9 ----------- Run | Jun Mat Mat Sto Matter Collected 609 | 184 76 328 21 Remotely . | . . . . Salvage Created 614 | . 76 410 128 Parts 40 | . 5 27 8 Haulers Intercepted . | . . . . Recyclers Shooed 4 | . . 2 2 Parts Field Recycled . | . . . . Retrieved Matter . | . . . . Parts Self-Destructed . | . . . . Prevented . | . . . . Kills | -11 -10 -9 -9 ------- Run | Jun Mat Mat Sto Combat Hostiles Destroyed 16 | . 2 12 2 Guns 15 | . 2 12 1 Classes Destroyed 5 | . 1 3 1 Builder 1 | . . . 1 Watcher 1 | . . 1 . Swarmer 5 | . . 5 . Grunt 9 | . 2 5 2 Sentry 2 | . . 2 . Best Kill Streak 4 | . 2 4 3 Combat Bots Only 4 | . 2 4 2 Max Kills in Single Turn 2 | . 1 2 1 Gunslinging . | . . . . Exploded . | . . . . Melee . | . . . . Uniques/NPCs Destroyed . | . . . . Combat | -11 -10 -9 -9 -------- Run | Jun Mat Mat Sto Damage Taken 1448 | . 110 763 575 Core 303 | . 32 138 133 Absorbed by Shields . | . . . . Core Remaining (%) 93 | 100 87 . . Volleys Fired 63 | . 9 41 13 Largest 2 | . 2 2 2 Hottest 90 | . 40 83 90 Shots Fired 122 | . 18 81 23 Gun 122 | . 18 81 23 Cannon . | . . . . Launcher . | . . . . Special . | . . . . Kinetic 87 | . 18 69 . Thermal 12 | . . 12 . Explosive . | . . . . Electromagnetic 23 | . . . 23 Robot Hit Streak 13 | . 6 13 7 Robot Miss Streak 4 | . 1 4 4 Penetration Max . | . . . . Secondary Targets 5 | . . 5 . Max Gunslinging Chain 1 | . . 1 . Shots Hit Robots 93 | . 16 56 21 Core Hits 39 | . 5 26 8 Critical Kills . | . . . . Critical Parts Destroyed 2 | . . 2 . Critical Strikes 2 | . . 2 . Destroy 2 | . . 2 . Melee Attacks . | . . . . Impact . | . . . . Slashing . | . . . . Piercing . | . . . . Sneak Attacks . | . . . . Combat Hostiles . | . . . . Follow-up Attacks . | . . . . Damage Inflicted 1398 | . 167 683 548 Guns 1156 | . 167 683 306 Cannons . | . . . . Explosions 237 | . . . 237 Melee . | . . . . Ramming 5 | . . . 5 Kinetic 678 | . 167 511 . Thermal 409 | . . 172 237 Explosive . | . . . . Electromagnetic 306 | . . . 306 Impact . | . . . . Slashing . | . . . . Piercing . | . . . . Highest Corruption 2 | . . . 2 Average Corruption 2 | . . . 2 Corruption Purged . | . . . . Corruption Blocked . | . . . . Effects 1 | . . . 1 Message Errors 1 | . . . 1 Overload Shots . | . . . . Overflow Damage 6 | . . . 6 Projectiles . | . . . . Explosions 6 | . . . 6 Melee . | . . . . Knockbacks . | . . . . Impact . | . . . . Kinetic . | . . . . Secondary . | . . . . Self-Inflicted Damage 99 | . . . 99 Shots 2 | . . . 2 Rammed 2 | . 1 . 1 Targets Rammed 2 | . 1 . 1 Kicked . | . . . . Crushed . | . . . . Highest Temperature 523 | . 25 474 523 Average Temperature 183 | . 8 135 370 Received Heat Transfer 618 | . 81 321 216 Effects 12 | . . 5 7 Shutdowns 4 | . . 2 2 Short Circuit 3 | . . 1 2 Damage (minor) 1 | . . . 1 Damage (major) 3 | . . 2 1 Damage (core) 1 | . . . 1 Siege Activations . | . . . . Robots Corrupted 1 | . . . 1 Combat Hostiles 1 | . . . 1 Parts Fried . | . . . . Impact Corruptions . | . . . . Robots Melted . | . . . . Combat Hostiles . | . . . . Parts Melted 2 | . . 2 . Heat Transferred 720 | . . 370 350 Parts Sabotaged . | . . . . Parts Stolen . | . . . . Parts Stripped . | . . . . Power Chain Reactions 2 | . . . 2 Missiles Intercepted . | . . . . Alert | -11 -10 -9 -9 ------- Run | Jun Mat Mat Sto Peak Influence 242 | . 50 242 175 Initial 90 | . . 20 90 Average 74 | . 18 92 120 Maximum Alert Level 1 | . . 1 . Low Security (%) 90 | 100 100 84 100 Level 1 10 | . . 15 . Level 2 . | . . . . Level 3 . | . . . . Level 4 . | . . . . Level 5 . | . . . . High Security . | . . . . Max Security . | . . . . Squads Dispatched 1 | . . . 1 Investigation . | . . . . Extermination . | . . . . Reinforcement 1 | . . . 1 Assault . | . . . . Garrison . | . . . . Intercept . | . . . . Searches Triggered . | . . . . Construction Impeded . | . . . . Haulers Reinforced . | . . . . Active Scanning Responses . | . . . . Cargo Convoy Interrupts . | . . . . Stealth | -11 -10 -9 -9 --------- Run | Jun Mat Mat Sto Distress Signals 2 | . . 2 . Communications Jammed . | . . . . Distress Signals . | . . . . Times Spotted 32 | . 3 22 7 Peak Tracking Total 7 | . 3 7 3 Tactical Retreats 4 | . . 4 . Traps | -11 -10 -9 -9 ------- Run | Jun Mat Mat Sto Traps Triggered . | . . . . Indirectly . | . . . . Trap Hack Attempts . | . . . . Triggered . | . . . . Disarmed . | . . . . Reprogrammed . | . . . . Reused . | . . . . Traps Extracted . | . . . . Installed . | . . . . Triggered . | . . . . Machines | -11 -10 -9 -9 ---------- Run | Jun Mat Mat Sto Machines Disabled 1 | . . . 1 Max in Single Turn 1 | . . . 1 Machines Repaired . | . . . . Machines Sabotaged . | . . . . Overloaded Fab Kills . | . . . . Hacking | -11 -10 -9 -9 --------- Run | Jun Mat Mat Sto Machines Accessed 5 | . . 4 1 Terminals 4 | . . 3 1 Fabricators . | . . . . Repair Stations 1 | . . 1 . Recycling Units . | . . . . Scanalyzers . | . . . . Garrison Access . | . . . . Total Hacks 10 | . . 9 1 Successful 5 | . . 4 1 Failed 5 | . . 5 . Catastrophic 1 | . . 1 . Database Lockouts . | . . . . Manual 4 | . 1 2 1 Terminals 8 | . . 7 1 Fabricators . | . . . . Repair Stations 2 | . . 2 . Recycling Units . | . . . . Scanalyzers . | . . . . Garrison Access . | . . . . Terminal Hacks 3 | . . 2 1 Prototype ID Bank 1 | . . 1 . Open Door 1 | . . . 1 Alert Level 1 | . . 1 . Fabricator Hacks . | . . . . Repair Station Hacks 1 | . . 1 . Scan Component 1 | . . 1 . Recycling Unit Hacks . | . . . . Scanalyzer . | . . . . Garrison Access Hacks . | . . . . Unauthorized Hacks 1 | . . 1 . Terminals 1 | . . 1 . Botnet 1 | . . 1 . Fabricators . | . . . . Repair Stations . | . . . . Recycling Units . | . . . . Scanalyzers . | . . . . Garrison Access . | . . . . Data Cores Recovered . | . . . . Used . | . . . . Hacking Detections 3 | . . 3 . Full Trace Events . | . . . . Feedback Events . | . . . . Feedback Blocked . | . . . . Robot Schematics Acquired . | . . . . Robots Built . | . . . . Authchips . | . . . . Time . | . . . . Total Robot Build Rating . | . . . . Part Schematics Acquired . | . . . . Parts Built . | . . . . Authchips . | . . . . Time . | . . . . Total Part Build Rating . | . . . . Parts Repaired . | . . . . Time . | . . . . Parts Recycled . | . . . . Recycled Matter . | . . . . Retrieved Matter . | . . . . Retrieved Components . | . . . . Parts Scanalyzed . | . . . . Part Schematics Acquired . | . . . . Parts Damaged . | . . . . Bothacking | -11 -10 -9 -9 ------------ Run | Jun Mat Mat Sto Used RIF Installer . | . . . . Robots Hacked . | . . . . Non-combat . | . . . . Combat . | . . . . Robot Hacks Applied . | . . . . Relay Couplers Released . | . . . . Fabnet Peak Effective % . | . . . . Robots Rewired . | . . . . Allies Hacked . | . . . . Hacks Repelled . | . . . . Allies | -11 -10 -9 -9 -------- Run | Jun Mat Mat Sto Total Allies . | . . . . Largest Group . | . . . . Highest-Rated Group . | . . . . Highest-Rated Ally . | . . . . Total Orders . | . . . . Ally Attacks . | . . . . Total Damage . | . . . . Kills . | . . . . Allies Corrupted . | . . . . Allies Melted . | . . . . Intel | -11 -10 -9 -9 ------- Run | Jun Mat Mat Sto Robot Analysis Total . | . . . . Derelict Logs Recovered . | . . . . Drone Launches . | . . . . Drone Recoveries . | . . . . Exploration | -11 -10 -9 -9 ------------- Run | Jun Mat Mat Sto Turns Passed 850 | 67 159 540 84 Spaces Moved 423 | 41 76 284 22 Core 6 | 6 . . . Treads 277 | 18 76 183 . Legs 19 | . . 19 . Wheels 17 | 17 . . . Hover 104 | . . 82 22 Flight . | . . . . Fastest Speed 42 | 50 160 42 102 Average Speed 132 | 114 160 129 102 Slowest Speed 170 | 160 160 170 102 Overloaded Moves . | . . . . Propulsion Burnouts . | . . . . Robots Hopped . | . . . . Cave-ins Triggered . | . . . . Exploration Rate (%) 15 | 5 22 27 8 Regions Visited 3 Branch Regions 1 Pre-discovered Areas . | . . . . Known Exits Taken . | . . . . Unknown Exits Taken 3 | 1 1 1 . Scrap Searched . | . . . . Spaces Dug . | . . . . Terrain Destroyed 6 | . . . 6 Melee . | . . . . Projectile . | . . . . AOE 6 | . . . 6 Terrain Rammed . | . . . . Walls Destroyed . | . . . . Machines Disabled . | . . . . Actions | -11 -10 -9 -9 --------- Run | Jun Mat Mat Sto Total 606 | 61 98 386 61 Wait 36 | . 3 13 20 Move 420 | 40 75 283 22 Hop . | . . . . Pick Up 36 | 12 6 18 . Fast Attach 5 | . . 4 1 Attach 16 | 7 1 6 2 Detach 1 | 1 . . . Swap 6 | 1 . 5 . Drop 21 | . 3 16 2 Fire 63 | . 9 41 13 Melee . | . . . . Ram 1 | . . . 1 Kick . | . . . . Crush 1 | . 1 . . Escape Stasis . | . . . . Rewire . | . . . . Trap . | . . . . Miscellaneous . | . . . . Route ------- -11/Junkyard -10/Materials -9/Materials -9/Storage History --------- Turn | Location | Event 26 | -11/Junkyard | Discovered new exit (range 16) 68 | -11/Junkyard | Entered Materials 208 | -10/Materials | Discovered new exit (range 9) 227 | -10/Materials | Entered another Materials area 227 | -9/Materials | Evolved 2 slots: Power x1, Propulsion x1 305 | -9/Materials | Build established: Mutant 312 | -9/Materials | Discovered new exit (range 16) 767 | -9/Materials | Entered Storage 845 | -9/Storage | Core integrity fell below 50% 851 | -9/Storage | Self-destructed Last Messages --------------- Destroyed Ion Engine. Imp. EM Shotgun destroyed. Destroyed Imp. EM Shotgun. Ion Engine broken. Overheating: Short circuit. Overheating: Aerolev Unit damaged (-23). Acquired 10 matter. Y-45 Defender misfires. Overheating: Med. Armor Plating damaged (-17). Y-45 Defender IFF system glitched. Overheating: Core damaged (-60). Med. Armor Plating destroyed. Imp. EM Shotgun broken. Overheating: Short circuit. Acquired 5 matter. Aerolev Unit destroyed. Power failure, Ion Engine shutdown. M-13 Machinist repairs Welding Torch. Dropped Broken Imp. EM Shotgun. Broken Ion Engine destroyed. Map ----- +----------------------------------------------------+ | ????????????????????????????????????????? | | ????????????????????????????????????????? | | ????????????????????????????????????????? | | ????????????????????????????????????????? | | ????????????????????????????????????????? | | ????????????????????????????????????????? | | ????????????????????????????????????????? | | ????????????????????????????????????????? | | ????????????????????????????????????????? | | ????????????????????????????????????????? | | ????????????? ????????????????????????? | | ????????????# #???????????????????????? | | ????????????# #???????????????????????? | | ????????????# #???????????????????????? | | ????????????# #???????????????????????? | | ????????????# #???????????????????????? | | ???????????## #??###?#????????????????? | | ??????????? # #?? """#????????????????? | | ????????????/ #??""R"#????????????????? | | ????????????# ###"" "###??????????????? | | ????????????# # #??????????????? | | ????????????# # #??????????????? | | ????????????# # #??????????????? | | ?????######## ;w ""a #??????????????? | | ?????# gY;! "" #??????????????? | | ?????# =@[*"" um ???????????? | | ?????# [%!"" ###????????????? | | ?????######+###;; "" #??????????????? | | ???????## #?### #??????????????? | | ???????#T #???###"T"####??????????????? | | ???????## #??????####?????????????????? | | ????????# !#???????????????????????????? | | ????????#! !#???????????????????????????? | | ????????#! !#???????????????????????????? | | ????????#! !#???????????????????????????? | | ????????#####???????????????????????????? | | ????????????????????????????????????????? | | ????????????????????????????????????????? | | | | | | | | | | | | | | | | | | | | | | | | | +----------------------------------------------------+ Best States ------------- Heat Dissipation 28 Energy Generation 15 Energy Capacity 500 Matter Stores 300 Matter Capacity 300 Sight Range 16 Terrain Scan Density 10 Armor Coverage 225 Evasion (%) 56 Targeting Accuracy 8 Recoil Reduction 2 Item Schematics ----------------- None Robot Schematics ------------------ None Fabricated ------------ Nothing Alien Tech Used ----------------- None Achievements -------------- None Challenges ------------ None Game ------ Seed IntegratedRefinerySegregator Manual? 0 Play Time 00:19:28 Cumulative 15.8 hours Start 2023.09.15 @ 00:14:39 End 2023.09.15 @ 00:34:18 Sessions 1 Manual Loads 0 Difficulty Rogue Special Mode None Game No. 17 Rogue 16 Adventurer 0 Explorer 1 Win Type - Total 0 Types 0/0/0/0/0/0/0/0/0 Lore% 20 Gallery% 25 Achievement% 23 Wizard Run 0 Options --------- ASCII 0 Keyboard 0 Movement Mouse Keybinds 0 Fullscreen 2 Font 18/TerminusBold Map View 76x50 Tactical HUD 0 Map Filters NONE Filters NONE Steam 1 RUN: 4ac1e14f-8076-4b94-92f5-a33c56bae3cb